{"text_format":"1","workbook":"xlsx","n_sheets":7,"sheets":["Deckblatt","Kühldecke","Deckenheizung","Bauteiltemperierung","Fußbodenheizung und -kühlung","Wandheizung und -kühlung","offene Decken"],"not_rendered":{"charts":0,"images":2,"macros":1,"external_links":1,"defined_names":25,"comments":6,"pivot_tables":0},"unopened":[],"bounds":{"document_bytes":16777216,"sheet_cells":100000,"rows_first":2000,"rows_last":500,"rows_between":2000,"halvings":0,"cell_chars":16384,"cell_head_chars":4096},"cells_cut":0,"cells_raw":0,"read":"whole","date_system":"1900"}

{"sheet":"Deckblatt","index":0,"n_rows":24,"n_cols":4,"rows_kept":24,"cut":false,"hidden":false,"merged":[]}
[]
[]
[]
[]
[null,"Kapilární rohože výpočet výkonu:"]
[]
[]
[null,null,null,"Chladicí výkon stropního systému"]
[null,null,null,"Topný výkon stropního systému"]
[null,null,null,"Temperování stavebního dílu"]
[null,null,null,"Chladicí a topný výkon podlahového systému"]
[null,null,null,"Chladicí a topný výkon stěnového systému"]
[null,null,null,"Kapiláry v otevřené stropní konstrukci"]
[]
[]
[]
[]
[]
[]
[]
[null,"Výpočetní program G-TERM"]
[null,"Verze A4.16"]
[null,"Pozor: výpočetní program G-TERM je chráněn autorskými právy. "]
[null,"Neoprávněnou distrubuci tohoto programu nebo jeho částí je možné pokutovat. "]

{"sheet":"Kühldecke","index":1,"n_rows":25,"n_cols":16,"rows_kept":25,"cut":false,"hidden":false,"merged":[[16,2,16,6]]}
[]
[null,"Chladicí výkon kapilárních rohoží ve stropním systému",null,null,null,null,null,null,null,13,"Index","Kenn.",null,"Ausführung","C","n"]
[]
[null,null,null,null,null,null,null,null,null,{"$f":"VLOOKUP(J2,K5:P25,5)","v":6.6929999999999996}]
[null,null,null,null,null,null,null,null,null,{"$f":"VLOOKUP(J2,K5:P24,6)","v":1.0960000000000001},1,"K.S15","Omítnutý strop, betonová deska s rohoží K.S15 a omítkou maxit ip22","Instalace v omítnuté betonové desce, rohož K.S15 a omítka maxit ip22, tloušťka omítky 15mm, 5mm překrytí kapilární rohože, viz technické pokyny TI-M03",7.3609999999999998,1.0816699999999999]
[null,"I","Pokojová teplota","°C",27,null,"Modré hodnoty lze měnit !",null,null,null,2,"K.S15","Omítnutý strop, SDK deska s rohoží K.S15 a omítkou Knauf MP75","Instalace v omítnutém stropě pod zavěšeným SDK podhledem s rohoží K.S15 a omítkou Knauf MP75, 10mm tloušťka omítky, 5mm překrytí kapilární rohože, viz technické pokyny TI-M03",7.9119999999999999,1.0905]
[null,null,null,null,null,null,null,null,null,null,3,"P.VS20","Omítnutý strop, betonová deska s rohoží P.VS20 a omítkou maxit ip22","Omítnutý strop, betonová deska, rohož P.VS20 v omítce maxit ip22, tloušťka omítky 15mm, 6,9mm překrytí kapilární rohože, viz technické pokyny TI-M03",6.39,1.07237]
[null,"II","Teplota přívod ","°C",16,null,null,null,null,null,4,"P.VS20","Omítnutý strop, SDK deska s rohoží P.VS20 a omítkou Knauf MP75","Instalace v omítnutém stropě pod zavěšenou SDK deskou, s rohoží P.VS20 v omítce Knauf MP75 , 10mm tloušťka omítky, 5mm překrytí kapilární rohože, viz technické pokyny TI-M03; EN14240",7.3079999999999998,1.0903]
[null,null,null,null,null,null,null,null,null,null,5,"K.G10","Omítnutý strop, SDK deska s rohoží K.G10 a BASWA Akustickým systémem","Akustikputzdecke unter abgehängter Gipskartondecke, K.G10, BASWAphon-Akustikplatte, Putzüberdeckung 5mm, rückseitige Wärmedämmung",8.1232000000000006,1.0911]
[null,"III","Teplota zpátečka","°C",18,null,null,null,null,null,6,"K.S15","Omítnutý strop, SDK deska s rohoží K.S15 a akustickou omítkou Sto","Instalace ve stropě omítnutém akustickou omítkou, pod zavěšeným SDK, s rohoží K.S15 v omítce Sto Akustikputz 12-14mm tloušťka, 8mm překrytí rohože, viz technické návody TI-M03",3.39,1.1499999999999999]
[null,null,null,null,null,null,null,null,null,null,7,"K.GM10","Kovová stropní kazeta s rohoží K.GM10, rohož nalepená, včetně izolace","Kovová kazeta značka Fural, 0,7mm silná, s akustickým vliesem, 0,7/1% děrování, rohož nalepená do desky, izolace, viz technické návody TI-M04",6.8905000000000003,1.0810999999999999]
[null,"IV","Střední teplota vody","°C",{"$f":"(E10+E8)/2","v":17},null,null,null,null,null,8,"K.UM10","Kovová stropní kazeta s rohoží K.UM10, rohož vložená, včetně izolace","Kovová kazeta značka Clestra Hauserman, bez akustického vliesu, 0,8mm silná, 1,5/11% děrování; rohož vložená do desky, včetně izolace, viz technické návody TI-M04",7.0255999999999998,1.0838000000000001]
[null,null,null,null,null,null,null,null,null,null,9,"K.U10","Kovová stropní kazeta s rohoží K.U10, rohož nalepená, bez izolace","Kovová kazeta značky Dipling, 0,8mm silná, s akustickým vliesem, 2,7/18% děrování, rohož nalepená, bez izolace, viz technické pokyny TI-M04",4.99,1.19]
[null,"V","Typ instalace",null,null,null,null,null,null,null,10,"K.GS10","Kovová stropní kazeta s rohoží K.GS10, rohož nalepená, bez izolace","Kovová kazeta značky Van Geel, 0,8mm silná, s akustickým vliesem, 2,2/12% děrování, rohož nalepená, bez izolace, viz technické pokyny TI-M04",5.84,1.1000000000000001]
[null,null,null,null,null,null,null,null,null,null,11,"B.MV10","Kovová stropní kazeta s rohoží B.MV10 ","Kovová kazeta, 0,8mm silná, s akustickým vliesem, 2,2/18% děrování, rohož B.MV10 vložená, viz technické pokyny TI-M04",5.47,1.0900000000000001]
[null,null,"Popis :",null,null,null,null,null,null,null,12,"GG10","Kovová stropní kazeta Sandwich s rohoží K.U10 a plechovým krytem","Kovová kazeta značka Clestra Hauserman jako sendvič, 0,8mm silná, v akustickým vliesem, 1,5/11% děrování, rohož mezi minerální vatou a plechem, plechový kryt, viz technické pokyny TI-M04",5.8490000000000002,1.105]
[null,null,{"$f":"VLOOKUP(J2,K5:P25,4)","v":"Kovová kazeta značka VanGeel als sendvič, 0,6mm silná, bez akustického vliesu, děrování 1,6/25%, rohož mezi minerální vatou a plechem, GK kryt, viz technické pokyny TI-M04"},null,null,null,null,null,null,null,13,"U10","Kovová stropní kazeta s rohoží K.UM10 a GK-krytem","Kovová kazeta značka VanGeel als sendvič, 0,6mm silná, bez akustického vliesu, děrování 1,6/25%, rohož mezi minerální vatou a plechem, GK kryt, viz technické pokyny TI-M04",6.6929999999999996,1.0960000000000001]
[null,null,null,null,null,null,null,null,null,null,14,"W12,5","Kovová stropní kazeta s Micropour povrchovou úpravou, bez izolace, s aktivovanou kapilární rohoží ","Kovová kazeta Micropur, značka Wilhelmi, 0,6mm silná, děrování 2,5/16,6%, rohož nalepená, bez izolace, viz technické pokyny TI-M04",6.1470000000000002,1.1060000000000001]
[null,"VI","Měrný chladicí výkon","W/m2",{"$f":"IF(E6>E12,J4*(E6-(E10+E8)/2)^J5,IF(E6=E12,0,\"Bitte Temperaturen überprüfen\"))","v":83.48737860828021},null,null,null,null,null,15,"K.S10","Nad SDK Rigips \"Climaifit\" s položenou rohoží K.S10, bez izolace","SDK deska (RIGIPS Climafit) s grafitovým jádrem a tepelnou vodivostí λ = 0,516 W/(m*K),10 mm tloušťka, přilepená oboustrannou lepicí páskou, bez izolace",6.8689999999999998,1.0449999999999999]
[null,null,null,null,null,null,null,null,null,null,16,"K.GK10","Nad SDK Knauf Thermoboard a položenou rohoží K.GK10","SDK deska Knauf Thermoboard 10mm, neděrovaný, izolace 30mm, položená rohož K.GK10, viz technické pokyny TI-M18",5.18,1.08]
[null,"VII","Měrný průtok vody","kg/(m2h)",{"$f":"E19*0.861/(E10-E8)","v":35.941316490864629},null,null,null,null,null,17,"K.GK10","Nad SDK Knauf Thermoboard děrovaný s položenou rohoží K.GK10","SDK deska Knauf Thermoplatte 10mm, děrovaná, nahoře akustický vlies, izolace nad rohoží 30 mm, s položenou rohoží K.GK10, viz technické pokyny TI-M18",5.22,1.08]
[null,null,null,null,null,null,null,null,null,null,18,"K.GK10","Nad SDK Danogipsakustiksystem s položenou rohoží K.GK10","SDK systém Danogips-Akustiksystem, 12,5mm, děrovaný, nahoře a dole akustický vlies, izolace 30mm, položená rohož K.GK10, viz technické pokyny TI-M18+24",4.33,1.08]
[null,null,null,null,null,null,null,null,null,null,19,"B.GK12","BEKA deska se zabudovanou kapilárou B.GK12","BEKA element se zabudovanou kapilární rohoží, SDK deska 12,5mm a extrudovaný polystyren 30mm silný, s rohoží K.GG10, viz technické pokyny TI-M10",5.17,1.1000000000000001]
[null,null,null,null,null,null,null,null,null,null,20,"K.GG10","Nad SDK s rohoží K.GG10 a teplonosnou pastou ","SDK deska 12,5mm, s nalepenou rohoží K.GG10 a teplonosnou pastou V.WLP.1, bez izolace, viz technické pokyny TI-M05",5.85,1.095]
[null,null,null,null,null,null,null,null,null,null,21,"K.S15","K.S15 mezi dvěma SDK deskami","SDK sendvič, rohož K.S15 mezi dvěma SDK deskami 12,5mm, nad rohoží izolace 3 mm silná, viz technické pokyny TI-M11",5.14,1.08]

{"sheet":"Deckenheizung","index":2,"n_rows":21,"n_cols":16,"rows_kept":21,"cut":false,"hidden":false,"merged":[[16,2,16,6]]}
[]
[null,"Topný výkon kapilárních rohoží ve stropním systému",null,null,null,null,null,null,null,3,"Index","Kenn.",null,"Ausführung","C","n"]
[]
[null,null,null,null,null,null,null,null,null,{"$f":"VLOOKUP(J2,K5:P14,5)","v":5.0389999999999997}]
[null,null,null,null,null,null,null,null,null,{"$f":"VLOOKUP(J2,K5:P23,6)","v":1.099},1,"K.S15","Omítnutý strop, betonová deska s rohoží K.S15 a omítkou maxit ip22","Instalace v omítnuté betonové desce, rohož K.S15 a omítka maxit ip22, tloušťka omítky 15mm, 5mm překrytí kapilární rohože, viz technické pokyny TI-M03",5.3,1]
[null,"I","Pokojová teplota","°C",21,null,null,null,null,null,2,"K.S15","Omítnutý strop, SDK deska s rohoží K.S15 a omítkou Knauf MP75","Instalace v omítnutém stropě pod zavěšeným SDK podhledem s rohoží K.S15 a omítkou Knauf MP75, 10mm tloušťka omítky, 5mm překrytí kapilární rohože, viz technické pokyny TI-M03",5.7549999999999999,1.085]
[null,null,null,null,null,null,null,null,null,null,3,"P.VS20","Omítnutý strop, SDK deska s rohoží P.VS20 a omítkou Knauf MP75","Instalace v omítnutém stropě pod zavěšenou SDK deskou, s rohoží P.VS20 v omítce Knauf MP75 , 10mm tloušťka omítky, 5mm překrytí kapilární rohože, viz technické pokyny TI-M03; EN14240",5.0389999999999997,1.099]
[null,"II","Teplota přívod","°C",35,null,null,null,null,null,4,"K.UM10","Kovová stropní kazeta s rohoží K.UM10, rohož vložená, včetně izolace","Kovová kazeta značka Clestra Hauserman, bez akustického vliesu, 0,8mm silná, 1,5/11% děrování; rohož vložená do desky, včetně izolace, viz technické návody TI-M04",5.0410000000000004,1.0860000000000001]
[null,null,null,null,null,null,null,null,null,null,5,"K.GS10","Kovová stropní kazeta s rohoží K.GS10, rohož nalepená, bez izolace","Kovová kazeta značky Van Geel, 0,8mm silná, s akustickým vliesem, 2,2/12% děrování, rohož nalepená, bez izolace, viz technické pokyny TI-M04",4.83,1.06]
[null,"III","Teplota zpátečka","°C",32,null,"Červené hodnoty lze měnit !",null,null,null,6,"B.MV10","Kovová stropní kazeta s rohoží B.MV10 ","Kovová kazeta, 0,8mm silná, s akustickým vliesem, 2,2/18% děrování, rohož B.MV10 vložená, viz technické pokyny TI-M04",4.4000000000000004,1.06]
[null,null,null,null,null,null,null,null,null,null,7,"K.S10","Nad SDK Rigips \"Climaifit\" s položenou rohoží K.S10, bez izolace","SDK deska (RIGIPS Climafit) s grafitovým jádrem a tepelnou vodivostí λ = 0,516 W/(m*K),10 mm tloušťka, přilepená oboustrannou lepicí páskou, bez izolace",5.7060000000000004,1.03]
[null,"IV","Střední teplota vody","°C",{"$f":"(E10+E8)/2","v":33.5},null,null,null,null,null,8,"K.GK10","Nad SDK Knauf Thermoboard a položenou rohoží K.GK10","SDK deska Knauf Thermoboard 10mm, neděrovaný, izolace 30mm, položená rohož K.GK10, viz technické pokyny TI-M18",3.94,1.0900000000000001]
[null,null,null,null,null,null,null,null,null,null,9,"K.GK10","Nad SDK Knauf Thermoboard děrovaný s položenou rohoží K.GK10","SDK deska Knauf Thermoplatte 10mm, děrovaná, nahoře akustický vlies, izolace nad rohoží 30 mm, s položenou rohoží K.GK10, viz technické pokyny TI-M18",3.83,1.0900000000000001]
[null,"V","Typ instalace",null,null,null,null,null,null,null,10,"K.GK10","Nad SDK Danogipsakustiksystem s položenou rohoží K.GK10","SDK systém Danogips-Akustiksystem, 12,5mm, děrovaný, nahoře a dole akustický vlies, izolace 30mm, položená rohož K.GK10, viz technické pokyny TI-M18+24",3.39,1.0900000000000001]
[]
[null,null,"Popis :"]
[null,null,{"$f":"VLOOKUP(J2,K5:P14,4)","v":"Instalace v omítnutém stropě pod zavěšenou SDK deskou, s rohoží P.VS20 v omítce Knauf MP75 , 10mm tloušťka omítky, 5mm překrytí kapilární rohože, viz technické pokyny TI-M03; EN14240"}]
[]
[null,"VI","Měrný topný výkon","W/m2",{"$f":"IF(E6<E12,J4*(((E10+E8)/2)-E6)^J5,\"Bitte Temperaturen überprüfen\")","v":80.881363250441524}]
[]
[null,"VII","Měrný průtok vody","kg/(m2h)",{"$f":"E19*0.861/(E8-E10)","v":23.212951252876717}]

{"sheet":"Bauteiltemperierung","index":3,"n_rows":21,"n_cols":17,"rows_kept":21,"cut":false,"hidden":false,"merged":[[16,2,16,6]]}
[]
[null,"Temperování stavebních dílů s rohoží typu P.VS20/30 oder P.VG20/30",null,null,null,null,null,null,null,1,"Index","Kenn.",null,"Ausführung","C","n"]
[]
[null,null,null,null,null,null,null,null,null,{"$f":"VLOOKUP(J2,K5:P7,5)","v":7.82}]
[null,null,null,null,null,null,null,null,null,{"$f":"VLOOKUP(J2,K5:P7,6)","v":1.0864499999999999},1,"P.VS20","chlazení s rohoží P.VS20","oberflächennahe Bauteiltemperierung Kühlen mit P.VS20/P.VG20 , 5mm Überdeckung mit Beton, siehe Technische Hinweise TI-M",7.82,1.0864499999999999,{"$f":"O5*($E$6-$E$12)^P5","v":95.423810077642202}]
[null,"I","Pokojová teplota","°C",27,null,null,null,null,null,2,"P.VS30","chlazení s rohoží P.VS30","oberflächennahe Bauteiltemperierung Kühlen mit P.VS30/P.VG30 , 5mm Überdeckung mit Beton, siehe Technische Hinweise TI-M",7.4169999999999998,1.0815699999999999,{"$f":"O6*($E$6-$E$12)^P6","v":89.494898332442574}]
[null,null,null,null,null,null,"Oranžové hodnoty lze měnit !",null,null,null,3,"P.VS30","ohřev s rohoží P.VS30","oberflächennahe Bauteiltemperierung Heizen mit P.VS30/P.VG30 , 5mm Überdeckung mit Beton, siehe Technische Hinweise TI-M",5.84,1.1000000000000001,{"$f":"O7*($E$12-$E$6)^P7","v":{"$error":"#NUM!"}}]
[null,"II","Teplota přívod","°C",16]
[]
[null,"III","Teplota zpátečka","°C",18,null,null,null,null,{"$f":"IF(E6>E12,Q5,\"Bitte Temperaturen überprüfen\")","v":95.423810077642202}]
[null,null,null,null,null,null,null,null,null,{"$f":"IF(E6>E12,(Q5*0.861/(E10-E8)),\"Bitte Temperaturen überprüfen\")","v":41.079950238424971}]
[null,"IV","Střední teplota vody","°C",{"$f":"(E10+E8)/2","v":17},null,null,null,null,{"$f":"IF(E6>E12,Q6,\"Bitte Temperaturen überprüfen\")","v":89.494898332442574}]
[null,null,null,null,null,null,null,null,null,{"$f":"IF(E6>E12,(Q6*0.861/(E10-E8)),\"Bitte Temperaturen überprüfen\")","v":38.52755373211653}]
[null,"V","Typ instalace KR",null,null,null,null,null,null,{"$f":"IF(E6<E12,Q7,\"Bitte Temperaturen überprüfen\")","v":"Bitte Temperaturen überprüfen"}]
[null,null,null,null,null,null,null,null,null,{"$f":"IF(E6<E12,(Q7*0.861/(E8-E10)),\"Bitte Temperaturen überprüfen\")","v":"Bitte Temperaturen überprüfen"}]
[null,null,"Popis :"]
[null,null,{"$f":"VLOOKUP(J2,K5:P22,4)","v":"oberflächennahe Bauteiltemperierung Kühlen mit P.VS20/P.VG20 , 5mm Überdeckung mit Beton, siehe Technische Hinweise TI-M"}]
[]
[null,"VI","Chladicí/topný výkon","W/m2",{"$f":"IF(J2=1,J10,IF(J2=2,J12,J14))","v":95.423810077642202}]
[null,null,null,null,{"$f":"IF(J2=1,J11,IF(J2=2,J13,J15))","v":41.079950238424971}]
[null,"VII","Průtok vody","kg/(m2h)"]

{"sheet":"Fußbodenheizung und -kühlung","index":4,"n_rows":21,"n_cols":16,"rows_kept":21,"cut":false,"hidden":false,"merged":[[16,2,16,6]]}
[]
[null,"Podlahové topení/chlazení s kapilární rohoží P.FS20 oder P.VS20/P.VS30",null,null,null,null,null,null,null,8,"Index","Kenn.",null,"Ausführung","C","n"]
[]
[null,null,null,null,null,null,null,null,null,{"$f":"VLOOKUP(J2,K5:P22,5)","v":6.18}]
[null,null,null,null,null,null,null,null,null,{"$f":"VLOOKUP(J2,K5:P22,6)","v":1.0669999999999999},1,"P.VS20","Tenkovrstvé podlahové topení na betonovém potěru + dlažba","Tenkovrstvé podlahové topení na tepelně izolované betové desce, P.FS20, 7,5mm překrytí samonivelační stěrkou Ardalan, 13mm dlažba, viz technické informace TI-M12",7.61,1.0329999999999999]
[null,"I","Pokojová teplota","°C",21,null,null,null,null,null,2,"P.VS20","Tenkovrstvé podlahové topení na dřevěném podkladu + dlažba","Tenkovrstvé podlahové topení na podlaze z prken, P.FS20, 7,5mm překrytí samonivelační stěrkou Ardalan. 13mm dlažba, viz technické informace TI-M12",7.6,1.0329999999999999]
[null,null,null,null,null,null,null,null,null,{"$f":"J8","v":49.284242268378861},3,"P.VS20","Tenkovrstvé podlahové topení na betonovém potěru + parkety","Tenkovrstvé podlahové topení na tepelně izolované betové desce, P.FS20, 7,5mm překrytí samonivelační stěrkou Ardalan, 15mm parkety z tvrdého dřeva, viz technické informace TI-M12",4.71,1.0509999999999999]
[null,"II","Teplota přívod","°C",30,null,null,null,null,{"$f":"IF(E6<E12,J4*(((E10+E8))/2-E6)^J5,IF(E6=E12,0,\"Bitte Temperaturen überprüfen !\"))","v":49.284242268378861},4,"P.VS30","Podlahové topení v anhydritovém potěru + dlažba","Tenkovrstvé podlahové topení v anhydritovém potěru tl. 45mm na tepelné izolaci, P.VS30, 15mm překrytí anhydritem, 13 mm dlažba",6.22,1.0680000000000001]
[null,null,null,null,null,null,null,null,null,{"$f":"J10","v":"Bitte Temperaturen überprüfen"},5,"P.VS30","Podlahové topení v cementovém potěru + dlažba","Tenkovrstvé podlahové topení v cementovém potěru tl. 45mm na tepelné izolaci, P.VS30, 15mm překrytí cementovým  potěrem, 13 mm dlažba",6.32,1.069]
[null,"III","Teplota zpátečka","°C",26,null,"Oranžové hodnoty lze měnit !",null,null,{"$f":"IF(E6>E12,J4*(E6-(E10+E8)/2)^J5,IF(E6=E12,0,\"Bitte Temperaturen überprüfen\"))","v":"Bitte Temperaturen überprüfen"},6,"P.VS30","Podlahové topení v anhydritovém potěru + koberec","Tenkovrstvé podlahové topení v anhydritovém potěru tl. 45mm na tepelné izolaci, P.VS30, 15mm překrytí anhydritem, 4 mm koberec",4.1900000000000004,1.0449999999999999]
[null,null,null,null,null,null,null,null,null,null,7,"P.VS30","Podlahové topení v cementovém potěru + koberec","Tenkovrstvé podlahové topení v cementovém potěru tl. 45mm na tepelné izolaci, P.VS30, 15mm překrytí cementovým  potěrem, 4 mm koberec",4.24,1.046]
[null,"IV","Střední teplota vody","°C",{"$f":"(E10+E8)/2","v":28},null,null,null,null,null,8,"P.VS30","Podlahové topení v anhydritovém potěru + linoleum ","Tenkovrstvé podlahové topení v anhydritovém potěru tl. 45mm na tepelné izolaci, P.VS30, 15mm překrytí anhydritem, 2,5 mm linoleum",6.18,1.0669999999999999]
[null,null,null,null,null,null,null,null,null,null,9,"P.VS30","Podlahové topení v cementovém potěru + linoleum","Tenkovrstvé podlahové topení v cementovém potěru tl. 45mm na tepelné izolaci, P.VS30, 15mm překrytí cementovým  potěrem, 2,5 mm linoleum",6.29,1.0680000000000001]
[null,"V","Typ instalace",null,null,null,null,null,null,null,10,"P.VS20","Chadicí podlaha na  betonovém potěru + dlažba","Tenkovrstvá chadicí podlaha na tepelně izolované betové desce, P.FS20, 7,5mm překrytí samonivelační stěrkou Ardalan, 6,7 W/m2K, 13m mm dlažba, viz technické informace TI-M12",5.56,1]
[null,null,null,null,null,null,null,null,null,null,11,"P.VS20","Chadicí podlaha na betonovém potěru + koberec","Tenkovrstvá chadicí podlaha na tepelně izolované betové desce, P.FS20, 7,5mm překrytí samonivelační stěrkou Ardalan, 6,7 W/m2K, 4 mm koberec, viz technické informace TI-M12",3.95,1]
[null,null,"Popis :",null,null,null,null,null,null,null,12,"P.VS20","Chadicí podlaha na betonovém potěru + linoleum","Tenkovrstvá chadicí podlaha na tepelně izolované betové desce, P.FS20, 7,5mm překrytí samonivelační stěrkou Ardalan, 6,7 W/m2K, 2,5 mm linoleum, viz technické informace TI-M12",5.53,1]
[null,null,{"$f":"VLOOKUP(J2,K5:P22,4)","v":"Tenkovrstvé podlahové topení v anhydritovém potěru tl. 45mm na tepelné izolaci, P.VS30, 15mm překrytí anhydritem, 2,5 mm linoleum"}]
[]
[null,"VI","Měrný chladicí/topný výkon","W/m2",{"$f":"IF(J2<10,J7,J9)","v":49.284242268378861}]
[]
[null,"VII","Měrný průtok vody","kg/(m2h)",{"$f":"IF(E6<E12,E19*0.861/(E8-E10),IF(E6=E12,0,E19*0.861/(E10-E8)))","v":10.608433148268549}]

{"sheet":"Wandheizung und -kühlung","index":5,"n_rows":21,"n_cols":16,"rows_kept":21,"cut":false,"hidden":false,"merged":[[16,2,16,6]]}
[]
[null,"Stěnové topení a chlazení ",null,null,null,null,null,null,null,3,"Index","Kenn.",null,"Ausführung","C","n"]
[]
[null,null,null,null,null,null,null,null,null,{"$f":"VLOOKUP(J2,K5:P8,5)","v":4.13}]
[null,null,null,null,null,null,null,null,null,{"$f":"VLOOKUP(J2,K5:P8,6)","v":1.1519999999999999},1,"K.S15","Stěnové topení v omítce","Režim topení, instalace v omítnuté stěně, rohož K.S15 v omítce maxit ip22, 11mm tloušťka omítky, 3mm překrytí kapilární rohože, viz technická informace TI-M20",4.0999999999999996,1.22]
[null,"I","Pokojová teplota","°C",21,null,null,null,null,null,2,"K.S15","Stěnové chlazení v omítce","Režim chlazení, instalace v omítnuté stěně, rohož K.S15 v sádrové omítce, 15mm tloušťka, 6,65mm překrytí kapiláry",6.66,1]
[null,null,null,null,null,null,null,null,null,{"$f":"J8","v":58.607075645759515},3,"B.GK12","Stěnové topení s BEKA elementem B.GK12","Stěnové topení s BEKA elementem z SDK desky tl. 12,5mm a polystyrenu tl. 30mm, s rohoží K.GG10, viz technické návody TI-K06",4.13,1.1519999999999999]
[null,"II","Teplota přívod","°C",32,null,null,null,null,{"$f":"IF(E6<E12,J4*(((E10+E8))/2-E6)^J5,IF(E6=E12,0,\"Bitte Temperaturen überprüfen !\"))","v":58.607075645759515},4,"B.GK12","Stěnové chlazení s BEKA elementem B.GK12","Stěnové chlazení s BEKA elementem z SDK desky tl. 12,5mm a polystyrenu tl. 30mm, s rohoží K.GG10, viz technické návody TI-K06",3.96,1.163]
[null,null,null,null,null,null,null,null,null,{"$f":"J10","v":"Bitte Temperaturen überprüfen"}]
[null,"III","Teplota zpátečka","°C",30,null,"Oranžové hodnoty lze měnit !",null,null,{"$f":"IF(E6>E12,J4*(E6-(E10+E8)/2)^J5,IF(E6=E12,0,\"Bitte Temperaturen überprüfen\"))","v":"Bitte Temperaturen überprüfen"}]
[]
[null,"IV","Střední teplota vody","°C",{"$f":"(E10+E8)/2","v":31}]
[]
[null,"V","Typ instalace"]
[]
[null,null,"Popis :"]
[null,null,{"$f":"VLOOKUP(J2,K5:P22,4)","v":"Stěnové topení s BEKA elementem z SDK desky tl. 12,5mm a polystyrenu tl. 30mm, s rohoží K.GG10, viz technické návody TI-K06"}]
[]
[null,"VI","Měrný chladicí/topný výkon","W/m2",{"$f":"IF(J2=1,J7,IF(J2=2,J9,IF(J2=3,J7,J9)))","v":58.607075645759515}]
[]
[null,"VII","Měrný průtok vody","kg/(m2h)",{"$f":"IF(E6<E12,E19*0.861/(E8-E10),IF(E6=E12,0,E19*0.861/(E10-E8)))","v":25.230346065499472}]

{"sheet":"offene Decken","index":6,"n_rows":21,"n_cols":16,"rows_kept":21,"cut":false,"hidden":false,"merged":[[16,2,16,6]]}
[]
[null,"Kapilární rohože v otevřené stropní konstrukci",null,null,null,null,null,null,null,10,"Index","Kenn.",null,"Ausführung","C","n"]
[]
[null,null,null,null,null,null,null,null,null,{"$f":"VLOOKUP(J2,K5:P14,5)","v":3.2909999999999999}]
[null,null,null,null,null,null,null,null,null,{"$f":"VLOOKUP(J2,K5:P14,6)","v":1.0980000000000001},1,"K.G10","Zavěšená rohož, viditelná, chlazení","Rohož K.G10 viditelná, napnutá na strop, chlazení",12.75,1.17]
[null,"I","Pokojová teplota","°C",27,null,null,null,null,null,2,"K.G10","Zavěšená rohož, viditelná, topení","Rohož K.G10 viditelná, napnutá na strop, topení",4.59,1.08]
[null,null,null,null,null,null,null,null,null,{"$f":"J8","v":41.24087606732202},3,"K.GM10","Nalepená na hliníkovou desku, chlazení","Hliníková deska zn. Metawell, s akustickým vliesem, rohož K.GM10 nalepená",10.895,1.0509999999999999]
[null,"II","Teplota přívod","°C",16,null,null,null,null,{"$f":"IF(E6>E12,J4*(E6-(E10+E8)/2)^J5,IF(E6=E12,0,\"Bitte Temperaturen überprüfen !\"))","v":41.24087606732202},4,"K.GM10","Nalepená na hliníkovou desku, topení","Hliníková deska zn. Metawell, s akustickým vliesem, rohož K.GM10 nalepená",8.68,1.077]
[null,null,null,null,null,null,null,null,null,null,5,"K.G10","Položená nad děrovaný plech, chlazení","Rohož K.G10 natažená nad děrovaný plech, děrování 5mm, po stranách otevřená",7.25,1.17]
[null,"III","Teplota zpátečka","°C",18,null,"Oranžové hodnoty lze měnit !",null,null,null,6,"K.G10","Položená nad děrovaný plech, topení","Rohož K.G10 natažená nad děrovaný plech, děrování 5mm, po stranách otevřená",3.41,1.19]
[null,null,null,null,null,null,null,null,null,null,7,"K.U10","Nalepená na plechovou desku, chlazení","Plechová deska zn. Van Geel, tloušťka 1,0mm, s akustickým vliesem, 2,4/30% děrování, nalepená rohož K.U10, bez izolace",6.52,1.147]
[null,"IV","Střední teplota vody","°C",{"$f":"(E10+E8)/2","v":17},null,null,null,null,{"$f":"J13","v":"Bitte Temperaturen überprüfen"},8,"K.U10","Nalepená na plechovou desku, topení","Plechová deska zn. Van Geel, tloušťka 1,0mm, s akustickým vliesem, 2,4/30% děrování, nalepená rohož K.U10, bez izolace",5.8150000000000004,1.167]
[null,null,null,null,null,null,null,null,null,{"$f":"IF(E6<E12,J4*(((E10+E8)/2)-E6)^J5,IF(E6=E12,0,\"Bitte Temperaturen überprüfen\"))","v":"Bitte Temperaturen überprüfen"},9,null,"Rohož nad PVC stropní krytinou, chlazení ","Rohož nad PVC stropní deskou zn. Barisol, rohož upevněná v meziprostoru",2.754,1.097]
[null,"V","Typ instalace",null,null,null,null,null,null,null,10,null,"Rohož nad PVC stropní krytinou, s ventilátorem, chlazení ","Rohož nad PVC stropní deskou zn. Barisol, rohož upevněná v meziprostoru, s ventilátorem 300m3/h v meziprostoru",3.2909999999999999,1.0980000000000001]
[]
[null,null,"Popis :"]
[null,null,{"$f":"VLOOKUP(J2,K5:P22,4)","v":"Rohož nad PVC stropní deskou zn. Barisol, rohož upevněná v meziprostoru, s ventilátorem 300m3/h v meziprostoru"}]
[]
[null,"VI","Chladicí/topný výkon","W/m2",{"$f":"IF(J2=1,J7,IF(J2=3,J7,IF(J2=5,J7,IF(J2=7,J7,IF(J2=9,J7,IF(J2=10,J7,J12))))))","v":41.24087606732202}]
[]
[null,"VII","Průtok vody","kg/(m2h)",{"$f":"IF(E6<E12,E19*0.861/(E8-E10),IF(E6=E12,0,E19*0.861/(E10-E8)))","v":17.754197146982129}]